{"text_format":"1","workbook":"xlsx","n_sheets":5,"sheets":["Aktuelle Soz.Vers. Zahlen","Sozialversicherungszahlen GBL","KT-Rechner GKV Versicherte","KT-Rechner PKV Versicherte","KT-Rechner Alg I"],"not_rendered":{"charts":0,"images":0,"macros":1,"external_links":0,"defined_names":19,"comments":2,"pivot_tables":0},"unopened":[],"bounds":{"document_bytes":16777216,"sheet_cells":100000,"rows_first":2000,"rows_last":500,"rows_between":2000,"halvings":0,"cell_chars":16384,"cell_head_chars":4096},"cells_cut":0,"cells_raw":0,"read":"whole","date_system":"1900"}

{"sheet":"Aktuelle Soz.Vers. Zahlen","index":0,"n_rows":54,"n_cols":7,"rows_kept":54,"cut":false,"hidden":false,"merged":[[55,0,55,5],[44,2,44,5],[47,0,47,5],[48,0,49,0],[50,2,50,5],[51,2,51,5],[52,2,52,5],[53,2,53,5],[54,0,54,5],[28,0,30,0],[31,0,33,0],[35,0,35,5],[38,2,38,5],[41,0,41,5],[36,0,37,0],[11,2,11,5],[18,4,19,4],[18,5,19,5],[20,0,20,5],[22,2,22,3],[13,2,13,3],[14,2,14,3],[15,0,17,0],[15,2,15,3],[16,2,16,3],[18,0,19,0],[18,1,19,1],[18,2,19,3],[21,0,22,0],[5,2,5,3],[6,2,6,3],[7,2,7,3],[9,2,9,5],[10,2,10,5],[42,0,43,0],[7,4,7,5],[8,2,8,3],[0,0,1,1],[0,2,0,5],[1,2,1,3],[1,4,1,5],[2,0,2,5],[3,2,3,3],[4,2,4,3],[3,0,4,0],[7,0,8,0],[10,0,10,1],[11,0,11,1],[12,2,12,3],[5,0,6,0]]}
["endgültige Sozialversicherungszahlen 2019",null,"Alte und neue Bundesländer",null,null,null,"Zusatzbeitrag Kinderlose PV"]
[null,null,"Alte \nBundesländer",null,"Neue \nBundesländer"]
["Krankenversicherung "]
["Versicherungspflichtgrenze\n„Neubestand“ ","monatlich",5062.5,null,"Euro"]
[null,"jährlich",60750,null,"Euro"]
[" Versicherungspflichtgrenze\n „Altbestand“ (gilt für am 31.12.2002 PKV-Versicherte)","monatlich",4537.5,null,"Euro"]
[null,"jährlich",54450,null,"Euro"]
["Beitragsbemessungsgrenze","monatlich",4537.5,null,"Euro"]
[null,"jährlich",54450,null,"Euro"]
["allgemeiner Beitragssatz der Krankenkassen",null,0.14599999999999999]
["Beitragssatz für die Berechnung des Arbeitgeberzuschusses",null,0.155]
["durchschnittlicher Zusatzbeitrag",null,8.9999999999999993E-3]
["monatlicher Höchstarbeitgeberzuschuss zur PKV",null,351.66,null,"Euro"]
["Einkommensgrenze in der Familienversicherung",null,445,null,"Euro"]
["Höchstkrankengeld der GKV /Tag",null,105.88,null,"Euro"]
["Höchstbeitrag Standardtarif\n(allg. Beitragssatz: 14,6 %)","einzeln",662.48,null,"Euro"]
[null,"Ehegatten 150 %",993.72,null,"Euro"]
[null,"Ehegatten einzeln",null,496.86,"Euro"]
["Höchstbeitrag Basistarif  \n14,6% + 0,9 % (Zusatzbeitrag)","einzeln",703.32,null,"Euro"]
[]
["Pflegeversicherung"]
["Beitragsbemessungsgrenze","monatlich",null,4537.5,"Euro"]
[null,"jährlich",54450,null,"Euro"]
["Beitragssatz PV",null,null,3.0499999999999999E-2]
["Beitragssatz PV (Kinderlose)",null,null,3.3000000000000002E-2,null,null,2.5000000000000001E-3]
["monatlicher Höchstbeitrag ",null,138.4,"bzw.",149.74,"Euro"]
["bei Hilfebedürftigkeit mit Basistarif PVN",null,null,69.2,"Euro"]
["monatlicher Höchstarbeitgeberzuschuss",null,null,69.2,"Euro"]
["Höchstbeitrag PVN","einzeln",null,138.4,"Euro"]
[null,"Ehegatten 150 %",null,207.6,"Euro"]
[null,"Ehegatten einzeln",null,103.8,"Euro"]
["Höchstbeitrag PVB","einzeln",null,55.36,"Euro"]
[null,"Ehegatten 150 %",null,83.04,"Euro"]
[null,"Ehegatten einzeln",null,41.52,"Euro"]
["bei Hilfebedürftigkeit mit Basistarif PVB",null,null,34.6,"Euro"]
["Rentenversicherung"]
["Beitragsbemessungsgrenze","monatlich",6700,"Euro",6150,"Euro"]
[null,"jährlich",80400,"Euro",73800,"Euro"]
["Beitragssatz  RV",null,0.186]
["monatlicher Höchstbeitrag ",null,1246.2,"Euro",1143.9000000000001,"Euro"]
["monatlicher Höchstarbeitgeberzuschuss",null,623.1,"Euro",571.95000000000005,"Euro"]
["Arbeitslosenversicherung"]
["Beitragsbemessungsgrenze","monatlich",6700,"Euro",6150,"Euro"]
[null,"jährlich",80400,"Euro",73800,"Euro"]
["Beitragssatz AL",null,2.5000000000000001E-2]
["monatlicher Höchstbeitrag",null,167.5,"Euro",153.75,"Euro"]
["monatlicher Höchstarbeitgeberzuschuss",null,83.75,"Euro",76.88,"Euro"]
["Sonstige Werte"]
["Bezugsgröße § 18 SGB IV ","monatlich",3115,"Euro",2870,"Euro"]
[null,"jährlich",37380,"Euro",34440,"Euro"]
["Geringverdienergrenze ","monatlich","325 Euro"]
["Geringfügigkeitsgrenze ","monatlich","450 Euro"]
["Studentenbeitrag KV ohne Zusatzbeitrag","monatlich","66,35 Euro"]
["Studentenbeitrag PV","monatlich","16,55 Euro / 18,17 Euro"]

{"sheet":"Sozialversicherungszahlen GBL","index":1,"n_rows":17,"n_cols":6,"rows_kept":17,"cut":false,"hidden":false,"merged":[[1,0,1,2],[0,0,0,2],[0,4,0,6]]}
["Werte für 2019",null,null,null,"weitere Werte für 2017"]
["Werte für Berechnung"]
["GKV","Alte BL","Neue BL "]
["Beitragsbemessungsgrenze KV",4537.5,4537.5,null,"Mulitiplikator Zusch. Kinderl. PV",1]
["allgemeiner Beitragssatz der Krankenkassen",{"$f":"'Aktuelle Soz.Vers. Zahlen'!C10:F10","v":0.14599999999999999},{"$f":"'Aktuelle Soz.Vers. Zahlen'!C10:F10","v":0.14599999999999999}]
["durchschnittlicher Zusatzbeitrag",8.9999999999999993E-3,8.9999999999999993E-3]
["Beitragsbemessungsgrenze PV",4537.5,4537.5]
["Beitragssatz PV",{"$f":"VLOOKUP(A8,'Aktuelle Soz.Vers. Zahlen'!$A$4:$F$52,4,FALSE)","v":3.0499999999999999E-2},{"$f":"VLOOKUP(A8,'Aktuelle Soz.Vers. Zahlen'!$A$4:$F$52,4,FALSE)","v":3.0499999999999999E-2}]
["Zusatzbeitrag PV (Kinderlose)",2.5000000000000001E-3,2.5000000000000001E-3]
["Beitragsbemessungsgrenze RV",6700,6150]
["Beitragssatz RV",0.186,0.186]
["Beitragsbemessungsgrenze AL",6700,6150]
["Beitragssatz AL",{"$f":"VLOOKUP(A13,'Aktuelle Soz.Vers. Zahlen'!$A$4:$F$52,3,FALSE)","v":2.5000000000000001E-2},{"$f":"VLOOKUP(A13,'Aktuelle Soz.Vers. Zahlen'!$A$4:$F$52,3,FALSE)","v":2.5000000000000001E-2}]
["monatl. Höchstbeitrag RV",1246.2,1143.9000000000001]
["Höchstbeitrag PV",138.4,138.4]
["monatlicher Höchstarbeitgeberzuschuss zur PKV",{"$f":"'Aktuelle Soz.Vers. Zahlen'!C13:D13","v":351.66}]
["monatlicher Höchstarbeitgeberzuschuss PV",{"$f":"'Aktuelle Soz.Vers. Zahlen'!D28","v":69.2}]

{"sheet":"KT-Rechner GKV Versicherte","index":2,"n_rows":42,"n_cols":7,"rows_kept":42,"cut":false,"hidden":false,"merged":[[33,1,33,3],[34,1,34,4],[23,0,23,4],[25,0,25,4],[24,1,24,3],[26,1,26,3],[30,0,30,4],[32,0,32,4],[0,0,0,4],[10,0,13,0],[15,0,19,0],[1,0,1,3],[5,1,5,2],[6,1,6,2],[2,0,2,3],[3,0,3,3],[9,0,9,4],[8,1,8,3],[4,0,4,4],[7,0,7,4],[12,1,12,3],[11,1,11,3],[10,1,10,3],[13,1,13,3],[37,0,37,4],[20,1,20,2],[21,0,21,4],[14,0,14,4],[16,1,16,2],[17,1,17,2],[18,1,18,2],[19,1,19,2],[15,1,15,2],[35,1,35,3],[36,1,36,3],[22,1,22,3],[28,1,28,3],[27,0,27,4],[29,0,29,4],[31,1,31,4]]}
["Berechnungschema für die Ermittlung des Krankentagegeldbedarfs\nPersonenkreis: GKV Versicherte Arbeitnehmer\nBasis: durchschnittlicher lohnsteuerpflichtiger Jahresbruttoverdienst"]
[]
["Versicherungsnummer"]
["Name"]
[]
["Bundesland","Alte Bundesländer",null,"<<< Pflichtfeld"]
["Kinder","ohne Kind",null,{"$f":"D6","v":"<<< Pflichtfeld"}]
[]
["Lohnsteuerpflichtiges Bruttoeinkommen\n(durchschnittlicher Monatswert)"]
[0,null,null,null,null,null,"Geben Sie bitte hier Ihre vorliegenden Daten ein!"]
["abzüglich Steuern","Lohnsteuer"]
[null,"Kirchensteuer"]
[null,"Solidaritätszuschlag"]
[null,"Steuern gesamt",null,null,{"$f":"E11+E12+E13","v":0}]
[]
["abzüglich Sozialversicherung \nArbeitnehmeranteil","Beitragssatz GKV inkl. Zusatzbeitragssatz",null,null,0.155,null,"Geben Sie bei vorliegendem Einkommensnachweis hier bitte den korrekten %-Satz an! "]
[null,"Krankenversicherung",null,{"$f":"IF(B6=\"Alte Bundesländer\",'Sozialversicherungszahlen GBL'!B4,'Sozialversicherungszahlen GBL'!C4)","v":4537.5},{"$f":"ROUNDUP(MIN((E9*E16/2),($D$17*E16/2))+MIN((E9*($E$16-E16))/2,($D$17*($E$16-E16))/2),2)","v":0}]
[null,"Rentenversicherung",null,{"$f":"IF(B6=\"Alte Bundesländer\",'Sozialversicherungszahlen GBL'!B10,'Sozialversicherungszahlen GBL'!C10)","v":6700},{"$f":"MIN(E9*'Sozialversicherungszahlen GBL'!$B$11/2,$D$18*'Sozialversicherungszahlen GBL'!$B$11/2)","v":0}]
[null,"Arbeitslosenversicherung",null,{"$f":"IF(B6=\"Alte Bundesländer\",'Sozialversicherungszahlen GBL'!B12,'Sozialversicherungszahlen GBL'!C12)","v":6700},{"$f":"MIN(E9*'Sozialversicherungszahlen GBL'!$B$13/2,$D$19*'Sozialversicherungszahlen GBL'!$B$13/2)","v":0}]
[null,"Pflegeversicherung inkl. Zuschlag Kinderlose ",null,{"$f":"IF(B6=\"Alte Bundesländer\",'Sozialversicherungszahlen GBL'!B7,'Sozialversicherungszahlen GBL'!C7)","v":4537.5},{"$f":"MIN(E9*'Sozialversicherungszahlen GBL'!$B$8/2,$D$20*'Sozialversicherungszahlen GBL'!$B$8/2)+IF(B7=\"ohne Kind\",MIN(E9,D20)*'Sozialversicherungszahlen GBL'!B9)","v":11.34375}]
[null,"Sozialversicherung gesamt",null,null,{"$f":"E17+E18+E19+E20","v":11.34375}]
[]
["entspricht durchschnittlichem Nettoeinkommen AVB\n(Monatswert)",null,null,null,{"$f":"E9-E14-E21","v":-11.34375}]
[]
["abzüglich Nettokrankengeld GKV (Monatswert)",null,null,null,{"$f":" E42","v":-8.9510695312500008}]
[]
["entspricht maximal versicherbarem KT monatlich",null,null,null,{"$f":" E23-E25","v":-2.3926804687499992}]
[]
["dividiert durch 30 = maximal versicherbares KT täglich",null,null,null,{"$f":" E27/30","v":-7.9756015624999968E-2}]
[]
[]
["Berechnung des Krankengeldes der GKV"]
[]
["Lohnsteuerpflichtiges Bruttoeinkommen max. Beitragsbemessungsgrenze\ngeteilt durch 30 mal 70 %",null,null,null,{"$f":"MIN((E9/30)*70%,$D$17/30*70%)","v":0}]
["im Vergleich zu"]
["Nettoeinkommen AVB \ngeteilt durch 30 mal 90 %",null,null,null,{"$f":"E23/30*90%","v":-0.34031250000000002}]
["Der niedrigere Wert ist massgebend = Bruttokrankengeld GKV täglich",null,null,null,{"$f":"MIN(E34:E36)","v":-0.34031250000000002}]
[]
["Bruttokrankengeld GKV täglich",null,null,null,{"$f":"E37","v":-0.34031250000000002}]
["Abzug der Sozialversicherung",{"$f":"('Sozialversicherungszahlen GBL'!$B$11+'Sozialversicherungszahlen GBL'!$B$13+'Sozialversicherungszahlen GBL'!$B$8)/2+IF(B7=\"mit Kind\",0,'Sozialversicherungszahlen GBL'!B9)","v":0.12325},"(RV + AL + PV jew. zur Hälfte + ggf. Zuschlag Kinderlose)",null,{"$f":"(E39*$B$40)","v":-4.1943515625000004E-2}]
["Nettokrankengeld GKV täglich",null,null,null,{"$f":"E39-E40","v":-0.29836898437500003}]
["Nettokrankengeld GKV monatlich",null,null,null,{"$f":"E41*30","v":-8.9510695312500008}]

{"sheet":"KT-Rechner PKV Versicherte","index":3,"n_rows":32,"n_cols":6,"rows_kept":32,"cut":false,"hidden":false,"merged":[[24,0,27,0],[24,1,24,2],[31,1,31,3],[13,0,13,3],[12,1,12,2],[17,0,17,3],[21,0,21,3],[18,0,20,0],[30,0,30,3],[23,0,23,3],[0,0,0,3],[9,0,12,0],[14,0,16,0],[1,0,1,3],[2,0,2,2],[3,0,3,2],[5,2,5,3],[4,0,4,3],[7,1,7,2],[6,0,6,3],[8,0,8,3],[9,1,9,2],[10,1,10,2],[11,1,11,2]]}
["Berechnungschema für die Ermittlung des Krankentagegeldbedarfs\nPersonenkreis: PKV Vollversicherte Arbeitnehmer\nBasis: durchschnittlicher lohnsteuerpflichtiger Jahresbruttoverdienst"]
[]
["Versicherungsnummer"]
["Name"]
[]
["Bundesland","Alte Bundesländer","<<< Pflichtfeld"]
[]
["Lohnsteuerpflichtiges Bruttoeinkommen\n(durchschnittlicher Monatswert)"]
[null,null,null,null,null,"Geben Sie bitte hier Ihre vorliegenden Daten ein!"]
["abzüglich Steuern","Lohnsteuer"]
[null,"Kirchensteuer"]
[null,"Solidaritätszuschlag"]
[null,"Steuern gesamt",null,{"$f":"D10+D11+D12","v":0}]
[]
["abzüglich Sozialversicherung \nArbeitnehmeranteil","Rentenversicherung",{"$f":"IF($B$6=\"Alte Bundesländer\",'Sozialversicherungszahlen GBL'!B10,'Sozialversicherungszahlen GBL'!C10)","v":6700},{"$f":"MIN(D8*'Sozialversicherungszahlen GBL'!$B$11/2,$C$15*'Sozialversicherungszahlen GBL'!$B$11/2)","v":0}]
[null,"Arbeitslosenversicherung",{"$f":"IF($B$6=\"Alte Bundesländer\",'Sozialversicherungszahlen GBL'!B12,'Sozialversicherungszahlen GBL'!C12)","v":6700},{"$f":"MIN(D8*'Sozialversicherungszahlen GBL'!$B$13/2,$C$16*'Sozialversicherungszahlen GBL'!$B$13/2)","v":0}]
[null,"Sozialversicherung gesamt",null,{"$f":"D15+D16","v":0}]
[]
["plus Arbeitgeberanteil \nKranken- und Pflegeversicherung","Krankenversicherung ",{"$f":" \"max. \"&FIXED('Sozialversicherungszahlen GBL'!B16:C16,2)&\" €\"","v":"max. 351,66 €"},{"$f":"MIN(('Sozialversicherungszahlen GBL'!$B$4*'Sozialversicherungszahlen GBL'!$B$5)/2,D8*'Sozialversicherungszahlen GBL'!$B$5/2)","v":0}]
[null,"Pflegeversicherung",{"$f":" \"max. \"&FIXED('Sozialversicherungszahlen GBL'!B17:C17,2)&\" €\"","v":"max. 69,20 €"},{"$f":"MIN(D8*'Sozialversicherungszahlen GBL'!$B$8/2,'Sozialversicherungszahlen GBL'!B7*'Sozialversicherungszahlen GBL'!$B$8/2)","v":0}]
[null,"Beitragszahlung monatlich gesamt",null,{"$f":"D19+D20","v":0}]
[]
["entspricht durchschnittlichem Nettoeinkommen AVB\n(Monatswert)",null,null,{"$f":"D8-D13-D17+D21","v":0}]
[]
["plus Beitragszahlung \nAusfallzeitwertung Rentenversicherung","Bruttoeinkommen max. Beitragsbemessungsgrenze ",null,{"$f":"IF($B$6=\"Alte Bundesländer\",MIN(D8,'Sozialversicherungszahlen GBL'!$B$10),MIN(D8,'Sozialversicherungszahlen GBL'!$C$10))","v":6700}]
[null,"hiervon 80 % ",null,{"$f":"D25*80 %","v":5360}]
[null,"Beitragssatz Rentenversicherung",null,{"$f":"'Sozialversicherungszahlen GBL'!B11","v":0.186}]
[null,"Beitragszahlung monatlich gesamt",null,{"$f":"D26*D27","v":996.96}]
[]
["entspricht maximal versicherbarem KT monatlich",null,null,{"$f":" D23+D28","v":996.96}]
[]
["dividiert durch 30 = maximal versicherbares KT täglich",{"$f":"D30/30","v":33.231999999999999}]

{"sheet":"KT-Rechner Alg I","index":4,"n_rows":23,"n_cols":12,"rows_kept":23,"cut":false,"hidden":false,"merged":[[0,0,0,3],[5,2,10,3],[12,2,12,3],[13,2,13,3],[14,2,14,3],[11,0,11,3],[2,0,2,1],[3,0,3,1],[20,2,20,3],[19,2,19,3],[15,2,15,3],[17,2,17,3],[16,0,16,3],[18,0,18,3]]}
["KT-Rechner für Bezieher von Arbeitslosengeld I (SGB III) ",null,null,null,null,"Hilfsspalten"]
[]
["Versicherungsnummer"]
["Name"]
[null,null,null,null,null,"Begrenzungen"]
["Leistungsbetrag - täglich:",null,"Geben Sie bitte hier Ihre vorliegenden Daten ein!",null,{"$f":"IF(B7>H18,H18,B7)","v":0}]
["Aktueller KV-Monatsbeitrag:",null,null,null,{"$f":"IF(B8>I18,I18,B8)","v":0}]
["Aktueller PV-Monatsbeitrag:"]
["Bemessungsentgelt - täglich:",null,null,null,null,null,null,null,null,null,"Bundesland"]
["Zugehörigkeit Bundesland","alte Bundesländer",null,null,null,null,null,null,null,null,"alte Bundesländer"]
["Bestehende Stufenanzahl im Tarif SG/TG: ",null,null,null,null,null,null,null,null,null,"neue Bundesländer"]
[null,null,null,null,null,"Monatlicher Rentenversicherungsbeitrag:",null,null,null,{"$f":"'Sozialversicherungszahlen GBL'!B14","v":1246.2},{"$f":"'Sozialversicherungszahlen GBL'!C14","v":1143.9000000000001}]
["Leistungsbetrag pro Monat:",{"$f":"ROUND((B6*30),2)","v":0},null,null,null,null,"Faktor 1","Faktor 2","Tagesswert/\nMon","West","Ost","Zugehörigkeit"]
["É Berücksichtigungsfähiger KV/PV-Monatsbeitrag:",{"$f":"ROUND(SUM(E6:E8),2)","v":0},{"$f":"\"Hinweis: max. \"&FIXED(H18,2)&\" € für KV/ max. \"&FIXED(I18,2)&\" € PV (Gesamt max. \"&FIXED(J18,2)&\" €)\"","v":"Hinweis: max. 562,65 € für KV/ max. 110,72 € PV (Gesamt max. 673,37 €)"},null,null,"Prozentwerte:",0.8,{"$f":"'Sozialversicherungszahlen GBL'!B11","v":0.186},30,{"$f":"J12*G14","v":996.96},{"$f":"K12*G14","v":915.12000000000012},{"$f":"IF(B10=K10,J14,K14)","v":996.96}]
["É Monatlicher Rentenversicherungsbeitrag:",{"$f":"ROUND(IF((B9*G14*H14*I14)>L14,L14,(B9*G14*H14*I14)),2)","v":0},{"$f":"\"Hinweis: max. \"&FIXED(J14,2)&\" € alte Bundesländer / max. \"&FIXED(K14,2)&\" € neue Bundesländer\"","v":"Hinweis: max. 996,96 € alte Bundesländer / max. 915,12 € neue Bundesländer"}]
["entspricht durchschnittlichem Nettoeinkommen AVB\n(Monatswert)",{"$f":"ROUND(SUM(B13:B15),2)","v":0},"Zwischensumme",null,null,"Berücksichtigungsfähiger KV/PV-Monatsbeitrag:"]
[null,null,null,null,null,null,null,"KV","PV","max"]
["dividiert durch 30 = max. versicherbares KT täglich",{"$f":"ROUND(B16/30,2)","v":0},null,null,null,null,null,{"$f":"H23","v":562.65},{"$f":"I23","v":110.72000000000001},{"$f":"SUM(H18:I18)","v":673.37}]
[null,null,null,null,null,null,null,"Berechnungsschritte"]
["Tarifstufe im Tarif SG/TG:",{"$f":"INT((B18-0.0001)/1)*1+1","v":0},"Tagessatz auf volle \"1 Euro\" gerundet!",null,null,"Beitragsbemessungsgrenze KV",null,{"$f":"'Sozialversicherungszahlen GBL'!B4","v":4537.5},{"$f":"'Sozialversicherungszahlen GBL'!B15","v":138.4}]
["Differenz zu bestehenden Stufen in AwV:",{"$f":"B11-B20","v":0},null,null,null,null,null,0.8,0.8]
[null,null,null,null,null,null,null,{"$f":"'Sozialversicherungszahlen GBL'!B5+'Sozialversicherungszahlen GBL'!B6","v":0.155}]
[null,null,null,null,null,null,null,{"$f":"H20*H21*H22","v":562.65},{"$f":"I20*I21","v":110.72000000000001}]